[Event "Kragero Resort A 2020"]
[Site "Kragero"]
[Date "2020.02.23"]
[Round "9.26"]
[White "Stellas, Dimitrios"]
[Black "Nordquelle, Daniel"]
[Result "0-1"]
[ECO "D00"]
[WhiteElo "2015"]
[BlackElo "2242"]
[Annotator "NA"]
[PlyCount "164"]
[EventDate "2020.02.19"]
[EventType "swiss"]
[EventCountry "NOR"]
[SourceTitle "playchess.com"]
[Source "ChessBase"]
[SourceQuality "1"]
[TimeControl "5400+30"]

1. d4 {[%emt 0:00:00]} d5 {[%emt 0:00:00]} 2. Bf4 {[%emt 0:00:00]} Nf6 {[%emt 0:00:00]} 3. e3 {[%emt 0:00:00]} c5 {[%emt 0:00:00]} 4. c3 {[%emt 0:00:08]} Nc6 {[%emt 0:00:08]} 5. Nd2 {[%emt 0:00:23]} Bf5 {[%emt 0:01:43]} 6. Ngf3 {[%emt 0:03:30]} e6 {[%emt 0:05:54]} 7. Qb3 {[%emt 0:07:01] D00: 1 d4 d5: Unusual lines.} Qc8 {[%emt 0:00:21]} 8. Nh4 {[%emt 0:06:29]} Bg4 {[%emt 0:04:31]} 9. h3 {[%emt 0:01:02]} Bh5 {[%emt 0:00:03]} 10. g4 {[%emt 0:00:26]} Bg6 {[%emt 0:00:04]} 11. Nxg6 {[%emt 0:00:14]} hxg6 {[%emt 0:00:04]} 12. Be2 {[%emt 0:01:19]} Be7 {[%emt 0:01:36] [#]} 13. Bg3 $146 {[%emt 0:09:29]} ({Predecessor:} 13. Rc1 Qd7 14. Kf1 c4 15. Qc2 Bd6 16. Bxd6 Qxd6 17. e4 Qf4 18. e5 Nd7 19. Nf3 {1-0 (31) Gonzalez Martinez,M (2115)-Ortin Blanco,I (2127) Zornotza 2017}) 13... g5 {[%emt 0:01:12]} 14. Bf3 {[%emt 0:02:06]} Qd7 {[%emt 0:07:55]} 15. O-O-O {[%emt 0:03:18]} c4 {[%emt 0:00:34]} 16. Qc2 {[%emt 0:00:59]} b5 {[%emt 0:00:31]} 17. e4 {[%emt 0:01:47]} b4 {[%emt 0:26:38]} 18. exd5 {[%emt 0:06:49]} exd5 {[%emt 0:07:32] [#]} (18... Nxd5 $14 19. Nxc4 Rc8) 19. Rde1 {[%emt 0:02:43]} (19. Nxc4 $1 $16 {[%mdl 512]} bxc3 (19... dxc4 20. d5) 20. Ne5) 19... O-O-O {[%emt 0:07:30]} 20. Qa4 {[%emt 0:04:40]} Nb8 {[%emt 0:10:53]} 21. Qa5 {[%emt 0:08:54]} Rhe8 {[%emt 0:06:54]} 22. Bd1 {[%emt 0:04:28]} Nc6 {[%emt 0:01:00]} 23. Qb5 {[%emt 0:04:30]} bxc3 {[%emt 0:03:24]} 24. bxc3 $11 {[%emt 0:01:17]} Ba3+ {[%emt 0:00:20]} 25. Kb1 {[%emt 0:00:36]} Qb7 {[%emt 0:00:04]} 26. Ba4 {[%emt 0:00:59]} Bd6 {[%emt 0:07:20]} 27. Bxd6 {[%emt 0:10:56]} Rxd6 {[%emt 0:00:09]} 28. Rxe8+ {[%emt 0:00:17]} Nxe8 {[%emt 0:00:04]} 29. Re1 {[%emt 0:00:31]} Qxb5+ {[%emt 0:03:39]} 30. Bxb5 {[%emt 0:00:02]} Nc7 {[%emt 0:00:07]} 31. Bxc6 {[%emt 0:00:21]} Rxc6 {[%emt 0:00:03]} 32. Re5 {[%emt 0:02:31]} f6 {[%emt 0:02:24]} 33. Re3 {[%emt 0:05:01]} Kd7 {[%emt 0:01:38]} 34. Kc2 {[%emt 0:00:27]} Ra6 {[%emt 0:00:12]} 35. Kb2 {[%emt 0:00:24]} Rb6+ {[%emt 0:00:04]} 36. Kc2 {[%emt 0:01:23]} Rb8 {[%emt 0:01:05]} 37. Re1 {[%emt 0:01:49]} Ne6 {[%emt 0:00:46]} 38. Nf1 {[%emt 0:00:45]} Nf4 {[%emt 0:00:57]} 39. Ne3 {[%emt 0:00:01]} g6 {[%emt 0:00:31]} 40. Rh1 {[%emt 0:02:55]} Rh8 {[%emt 0:00:16]} 41. Rb1 {[%emt 0:00:17]} Kc6 {[%emt 0:00:17]} 42. a4 {[%emt 0:00:29]} Rxh3 {[%emt 0:01:46]} 43. Rb5 {[%emt 0:00:08]} Rh2 {[%emt 0:00:26]} 44. Rc5+ {[%emt 0:01:03]} Kd6 {[%emt 0:00:18]} 45. Nd1 {[%emt 0:00:25]} Nd3 {[%emt 0:00:41]} 46. Ra5 {[%emt 0:00:16]} Nxf2 {[%emt 0:00:20]} 47. Ra6+ {[%emt 0:00:58]} Kc7 {[%emt 0:00:06]} 48. Rxa7+ {[%emt 0:00:25]} Kb6 {[%emt 0:00:18]} 49. Rd7 {[%emt 0:01:35]} Nxg4+ {[%emt 0:00:07]} 50. Kb1 {[%emt 0:00:44]} Kc6 {[%emt 0:00:39]} 51. Ra7 {[%emt 0:00:41]} Rh1 {[%emt 0:01:11]} 52. Kc2 {[%emt 0:00:06]} Rf1 {[%emt 0:00:10]} 53. Ra6+ {[%emt 0:04:03]} Kb7 {[%emt 0:01:04]} 54. Rd6 {[%emt 0:00:13]} Nh2 {[%emt 0:00:54]} 55. Rxd5 {[%emt 0:00:49]} g4 {[%emt 0:00:04]} 56. Ne3 {[%emt 0:00:27]} Re1 {[%emt 0:00:42]} 57. Rb5+ {[%emt 0:00:41]} Kc8 {[%emt 0:00:37]} 58. Nxg4 {[%emt 0:03:38]} Nxg4 {[%emt 0:00:06]} 59. Rc5+ {[%emt 0:00:28]} Kb7 {[%emt 0:00:40]} 60. Kd2 {[%emt 0:00:24]} Ra1 {[%emt 0:00:24]} 61. Rxc4 {[%emt 0:00:12]} f5 {[%emt 0:00:28]} 62. Rb4+ {[%emt 0:00:26]} Kc6 {[%emt 0:00:21]} 63. Kc2 {[%emt 0:00:21]} Ne3+ {[%emt 0:00:56]} 64. Kb2 {[%emt 0:00:17]} Rh1 {[%emt 0:00:15]} 65. a5 {[%emt 0:00:15]} Rh8 {[%emt 0:00:48]} 66. Rb6+ {[%emt 0:00:30]} Kd5 {[%emt 0:00:04]} 67. Rxg6 {[%emt 0:00:57]} Nc4+ {[%emt 0:00:08]} 68. Kb3 {[%emt 0:00:58]} Nxa5+ {[%emt 0:00:23]} 69. Ka4 {[%emt 0:00:36]} Nc4 {[%emt 0:00:51]} 70. Rf6 {[%emt 0:00:31]} Ra8+ {[%emt 0:00:36]} 71. Kb3 {[%emt 0:00:30]} Rb8+ {[%emt 0:00:19]} 72. Kc2 {[%emt 0:00:18]} Rb2+ {[%emt 0:00:08]} 73. Kc1 {[%emt 0:00:12]} Rf2 {[%emt 0:00:04]} 74. Kd1 {[%emt 0:00:28]} Nd6 {[%emt 0:01:45]} 75. Rf8 {[%emt 0:01:16]} Kc4 {[%emt 0:00:42]} 76. Ke1 {[%emt 0:00:17]} Rf3 {[%emt 0:00:15]} 77. Rd8 {[%emt 0:00:45]} Re3+ {[%emt 0:00:51]} 78. Kf1 {[%emt 0:00:38]} Re6 {[%emt 0:00:06]} 79. Kf2 {[%emt 0:00:42]} Kxc3 {[%emt 0:00:12]} 80. d5 {[%emt 0:00:08]} Rf6 {[%emt 0:00:13]} 81. Kf3 {[%emt 0:00:43]} Kd4 {[%emt 0:00:34]} 82. Kf4 {[%emt 0:00:13]} Kxd5 {[%emt 0:00:15]} 0-1

[Event "Kragero Resort A 2020"]
[Site "Kragero"]
[Date "2020.02.23"]
[Round "9.27"]
[White "Ingebretsen, Jens E"]
[Black "Olsen, Robin"]
[Result "1/2-1/2"]
[ECO "B13"]
[WhiteElo "2241"]
[BlackElo "2025"]
[Annotator "ChessBase"]
[PlyCount "48"]
[EventDate "2020.02.19"]
[EventType "swiss"]
[EventCountry "NOR"]
[SourceTitle "playchess.com"]
[Source "ChessBase"]
[SourceQuality "1"]
[TimeControl "5400+30"]

1. e4 {[%emt 0:00:14]} c6 {[%emt 0:00:19]} 2. d4 {[%emt 0:00:13]} d5 {[%emt 0:00:03]} 3. exd5 {[%emt 0:00:07]} cxd5 {[%emt 0:00:07]} 4. Bd3 {[%emt 0:00:11]} Nc6 {[%emt 0:00:36]} 5. c3 {[%emt 0:00:08]} Qc7 {[%emt 0:03:24]} 6. Ne2 {[%emt 0:00:10]} Bg4 {[%emt 0:00:17]} 7. O-O {[%emt 0:00:15]} e6 {[%emt 0:02:05]} 8. Qe1 {[%emt 0:02:35]} Bxe2 {[%emt 0:01:34]} 9. Qxe2 {[%emt 0:00:10]} Bd6 {[%emt 0:04:05]} 10. f4 {[%emt 0:01:46]} Nf6 {[%emt 0:07:50]} 11. f5 {[%emt 0:09:20]} e5 {[%emt 0:01:10]} 12. dxe5 {[%emt 0:02:17]} Bxe5 {[%emt 0:01:18]} 13. Nd2 {[%emt 0:04:51]} O-O-O {[%emt 0:00:41]} 14. Nf3 {[%emt 0:01:37]} Bd6 {[%emt 0:00:30]} 15. b4 {[%emt 0:02:42]} Rhe8 {[%emt 0:01:18]} 16. Qf2 {[%emt 0:03:32]} Ne4 {[%emt 0:09:32]} 17. Qc2 {[%emt 0:00:41]} Ne5 {[%emt 0:01:53]} 18. Bxe4 {[%emt 0:02:01]} dxe4 {[%emt 0:00:17]} 19. Qxe4 {[%emt 0:01:23]} Qxc3 {[%emt 0:11:44]} 20. Bg5 {[%emt 0:06:55]} Nxf3+ {[%emt 0:00:50]} 21. Qxf3 {[%emt 0:00:50]} Qxf3 {[%emt 0:01:09]} 22. Rxf3 {[%emt 0:00:26]} f6 {[%emt 0:00:36]} 23. Be3 {[%emt 0:01:06]} b6 {[%emt 0:01:37]} 24. a3 {[%emt 0:00:43]} Kb7 {[%emt 0:00:37]} 1/2-1/2

[Event "Kragero Resort A 2020"]
[Site "Kragero"]
[Date "2020.02.23"]
[Round "9.28"]
[White "Abdrlauf, Elham"]
[Black "Woithe, Daniel"]
[Result "1-0"]
[ECO "C28"]
[WhiteElo "2381"]
[BlackElo "2067"]
[Annotator "ChessBase"]
[PlyCount "105"]
[EventDate "2020.02.19"]
[EventType "swiss"]
[EventCountry "NOR"]
[SourceTitle "playchess.com"]
[Source "ChessBase"]
[SourceQuality "1"]
[TimeControl "5400+30"]

1. e4 {[%emt 0:03:16]} e5 {[%emt 0:00:00]} 2. Nc3 {[%emt 0:00:09]} Nf6 {[%emt 0:00:00]} 3. Bc4 {[%emt 0:00:09]} Nc6 {[%emt 0:01:39]} 4. d3 {[%emt 0:00:09]} Bc5 {[%emt 0:06:55]} 5. f4 {[%emt 0:00:07]} d6 {[%emt 0:04:22]} 6. Nf3 {[%emt 0:00:18]} exf4 {[%emt 0:13:28]} 7. Bxf4 {[%emt 0:03:19]} Be6 {[%emt 0:02:08]} 8. Bxe6 {[%emt 0:04:41]} fxe6 {[%emt 0:00:04]} 9. Na4 {[%emt 0:00:29]} Bb6 {[%emt 0:01:04]} 10. Nxb6 {[%emt 0:00:09]} axb6 {[%emt 0:00:05]} 11. O-O {[%emt 0:00:15]} O-O {[%emt 0:00:44]} 12. Qd2 {[%emt 0:00:24]} e5 {[%emt 0:07:20]} 13. Bg5 {[%emt 0:00:24]} h6 {[%emt 0:05:28]} 14. Bh4 {[%emt 0:00:32]} Ne7 {[%emt 0:00:45]} 15. Qc3 {[%emt 0:05:48]} Ng6 {[%emt 0:01:57]} 16. Bxf6 {[%emt 0:06:25]} Rxf6 {[%emt 0:02:16]} 17. a4 {[%emt 0:01:16]} Kh7 {[%emt 0:04:36]} 18. b4 {[%emt 0:00:16]} Nf4 {[%emt 0:02:45]} 19. Kh1 {[%emt 0:00:59]} Qd7 {[%emt 0:03:26]} 20. a5 {[%emt 0:11:38]} b5 {[%emt 0:26:12]} 21. d4 {[%emt 0:01:18]} Ne2 {[%emt 0:01:21]} 22. Qd3 {[%emt 0:00:10]} Nxd4 {[%emt 0:00:27]} 23. Nxd4 {[%emt 0:00:10]} Rxf1+ {[%emt 0:00:08]} 24. Rxf1 {[%emt 0:00:09]} exd4 {[%emt 0:00:04]} 25. e5+ {[%emt 0:00:31]} Kg8 {[%emt 0:01:00]} 26. Qxd4 {[%emt 0:00:26]} Qe6 {[%emt 0:01:27]} 27. exd6 {[%emt 0:00:08]} Qxd6 {[%emt 0:01:13]} 28. Qxd6 {[%emt 0:00:19]} cxd6 {[%emt 0:00:09]} 29. Kg1 {[%emt 0:01:12]} b6 {[%emt 0:01:24]} 30. axb6 {[%emt 0:00:06]} Rb8 {[%emt 0:00:06]} 31. Kf2 {[%emt 0:00:08]} Rxb6 {[%emt 0:00:06]} 32. c3 {[%emt 0:00:16]} Rc6 {[%emt 0:00:44]} 33. Rd1 {[%emt 0:02:07]} Rxc3 {[%emt 0:00:28]} 34. Rd5 {[%emt 0:00:03]} Rb3 {[%emt 0:02:30]} 35. Rxb5 {[%emt 0:00:07]} Kf7 {[%emt 0:02:58]} 36. Rb8 {[%emt 0:00:05]} d5 {[%emt 0:00:48]} 37. b5 {[%emt 0:00:06]} Rb2+ {[%emt 0:00:38]} 38. Kf3 {[%emt 0:00:08]} d4 {[%emt 0:00:31]} 39. b6 {[%emt 0:00:09]} Kg6 {[%emt 0:01:05]} 40. h4 {[%emt 0:02:55]} h5 {[%emt 0:03:32]} 41. Ke4 {[%emt 0:03:17]} Rxg2 {[%emt 0:00:07]} 42. Kxd4 {[%emt 0:00:50]} Rb2 {[%emt 0:03:23]} 43. Kc5 {[%emt 0:00:00]} Kf5 {[%emt 0:00:15]} 44. Rd8 {[%emt 0:00:00]} Rc2+ {[%emt 0:00:51]} 45. Kb5 {[%emt 0:00:00]} Rb2+ {[%emt 0:00:06]} 46. Kc6 {[%emt 0:00:00]} Rc2+ {[%emt 0:00:26]} 47. Kd7 {[%emt 0:00:00]} Kg4 {[%emt 0:01:05]} 48. b7 {[%emt 0:00:00]} Rb2 {[%emt 0:00:06]} 49. b8=Q {[%emt 0:00:00]} Rxb8 {[%emt 0:00:09]} 50. Rxb8 Kxh4 {[%emt 0:00:05]} 51. Ke6 {[%emt 0:00:00]} Kg3 {[%emt 0:01:24]} 52. Kf5 {[%emt 0:00:00]} h4 {[%emt 0:01:00]} 53. Rb3+ {[%emt 0:00:00]} 1-0